[Event "*** Titled Tuesday Blitz"]
[Site "Chess.com"]
[Date "2021.04.20"]
[Round "6"]
[White "woodhy"]
[Black "GoltsevDmitry2000"]
[Result "0-1"]
[WhiteElo "2501"]
[BlackElo "2744"]
[TimeControl "180+1"]
[EndTime "11:04:08 PDT"]
[Termination "GoltsevDmitry2000 won by resignation"]

1. e4 {[%clk 0:03:00.9]} 1... c5 {[%clk 0:02:49.9]} 2. Nf3 {[%clk 0:03:00.1]}
2... e6 {[%clk 0:02:50.8]} 3. d4 {[%clk 0:02:57.9]} 3... cxd4 {[%clk 0:02:51.6]}
4. Nxd4 {[%clk 0:02:58.8]} 4... a6 {[%clk 0:02:52]} 5. c4 {[%clk 0:02:58.5]}
5... Qc7 {[%clk 0:02:52.2]} 6. Nc3 {[%clk 0:02:58.4]} 6... Nf6 {[%clk
0:02:52.3]} 7. a3 {[%clk 0:02:58.7]} 7... Nc6 {[%clk 0:02:52.5]} 8. Be3 {[%clk
0:02:58.1]} 8... h5 {[%clk 0:02:47]} 9. Be2 {[%clk 0:02:56.7]} 9... Ng4 {[%clk
0:02:38.3]} 10. Bxg4 {[%clk 0:02:53.2]} 10... hxg4 {[%clk 0:02:39]} 11. Qxg4
{[%clk 0:02:52.4]} 11... Ne5 {[%clk 0:02:37.2]} 12. Bf4 {[%clk 0:01:58.2]} 12...
Nd3+ {[%clk 0:02:28.7]} 13. Kd2 {[%clk 0:01:41.3]} 13... Qxf4+ {[%clk
0:02:21.3]} 14. Qxf4 {[%clk 0:01:40.4]} 14... Nxf4 {[%clk 0:02:22.2]} 15. g3
{[%clk 0:01:40.8]} 15... Ng6 {[%clk 0:02:21.9]} 16. f4 {[%clk 0:01:40.7]} 16...
Bc5 {[%clk 0:02:19]} 17. Nb3 {[%clk 0:01:40.6]} 17... Ba7 {[%clk 0:02:12.5]} 18.
c5 {[%clk 0:01:38.7]} 18... b6 {[%clk 0:02:04.8]} 19. cxb6 {[%clk 0:01:31.7]}
19... Bxb6 {[%clk 0:02:05.7]} 20. h4 {[%clk 0:01:30.9]} 20... Bb7 {[%clk
0:01:59.2]} 21. Rhd1 {[%clk 0:01:30.8]} 21... O-O {[%clk 0:01:54.1]} 22. Ke2
{[%clk 0:01:31]} 22... d5 {[%clk 0:01:45.5]} 23. exd5 {[%clk 0:01:29.1]} 23...
exd5 {[%clk 0:01:46.4]} 24. Nxd5 {[%clk 0:01:29]} 24... Rfe8+ {[%clk 0:01:46]}
25. Kf1 {[%clk 0:01:21.6]} 25... Bxd5 {[%clk 0:01:36.1]} 26. Rxd5 {[%clk
0:01:22.5]} 26... Re3 {[%clk 0:01:34.4]} 27. h5 {[%clk 0:01:14.8]} 27... Ne7
{[%clk 0:01:24.5]} 28. Re5 {[%clk 0:01:14.2]} 28... Rxb3 {[%clk 0:01:22.3]} 29.
Rxe7 {[%clk 0:01:12.9]} 29... Rxg3 {[%clk 0:01:20.3]} 30. Ke2 {[%clk 0:01:05.1]}
30... Rg2+ {[%clk 0:01:18.8]} 31. Kf3 {[%clk 0:01:04.9]} 31... Rxb2 {[%clk
0:01:17.1]} 32. Rd1 {[%clk 0:01:05.1]} 32... Rb3+ {[%clk 0:01:15]} 33. Kg4
{[%clk 0:01:03.8]} 33... Rxa3 {[%clk 0:01:13.5]} 34. Rdd7 {[%clk 0:01:03.6]}
34... Rf8 {[%clk 0:01:13.6]} 35. Kf5 {[%clk 0:00:54]} 35... Rh3 {[%clk
0:01:09.1]} 36. Kg4 {[%clk 0:00:53.9]} 36... Re3 {[%clk 0:01:08.1]} 0-1

[Event "*** Titled Tuesday Blitz"]
[Site "Chess.com"]
[Date "2021.04.20"]
[Round "6"]
[White "dretch"]
[Black "Diego_FloresQ"]
[Result "1-0"]
[WhiteElo "2782"]
[BlackElo "2609"]
[TimeControl "180+1"]
[EndTime "11:04:09 PDT"]
[Termination "dretch won by resignation"]

1. d4 {[%clk 0:03:00.9]} 1... Nf6 {[%clk 0:02:34.1]} 2. c4 {[%clk 0:03:01]} 2...
c5 {[%clk 0:02:32.5]} 3. d5 {[%clk 0:03:00.9]} 3... e6 {[%clk 0:02:32.4]} 4. Nc3
{[%clk 0:03:00.9]} 4... exd5 {[%clk 0:02:33.3]} 5. cxd5 {[%clk 0:03:01.7]} 5...
d6 {[%clk 0:02:33.9]} 6. e4 {[%clk 0:03:02.1]} 6... g6 {[%clk 0:02:34.5]} 7. h3
{[%clk 0:03:01.5]} 7... Bg7 {[%clk 0:02:34.7]} 8. Nf3 {[%clk 0:03:02]} 8... O-O
{[%clk 0:02:34.5]} 9. Bd3 {[%clk 0:03:02.3]} 9... a6 {[%clk 0:02:33.8]} 10. a4
{[%clk 0:03:02]} 10... Re8 {[%clk 0:02:30.8]} 11. O-O {[%clk 0:03:01.7]} 11...
Nbd7 {[%clk 0:02:25.4]} 12. Re1 {[%clk 0:03:01]} 12... Ne5 {[%clk 0:02:22.6]}
13. Nxe5 {[%clk 0:02:59]} 13... Rxe5 {[%clk 0:02:22.1]} 14. Bf4 {[%clk
0:02:58.5]} 14... Re8 {[%clk 0:02:21.6]} 15. a5 {[%clk 0:02:54.8]} 15... Nh5
{[%clk 0:02:20.8]} 16. Bh2 {[%clk 0:02:51.9]} 16... Be5 {[%clk 0:02:20.8]} 17.
Bxe5 {[%clk 0:02:51.2]} 17... Rxe5 {[%clk 0:02:21.4]} 18. Qd2 {[%clk 0:02:43.2]}
18... Qf6 {[%clk 0:01:58.3]} 19. Ne2 {[%clk 0:02:31.5]} 19... g5 {[%clk
0:01:15.2]} 20. Ra3 {[%clk 0:02:12.6]} 20... h6 {[%clk 0:01:03.5]} 21. Bb1
{[%clk 0:02:07.2]} 21... Re7 {[%clk 0:01:02.1]} 22. Rf1 {[%clk 0:02:01.1]} 22...
Qg7 {[%clk 0:00:57.9]} 23. g4 {[%clk 0:01:55]} 23... Nf6 {[%clk 0:00:52.6]} 24.
Ng3 {[%clk 0:01:55]} 24... Bd7 {[%clk 0:00:45.9]} 25. f4 {[%clk 0:01:54.3]}
25... Rae8 {[%clk 0:00:41.5]} 26. e5 {[%clk 0:01:52.5]} 26... dxe5 {[%clk
0:00:39.4]} 27. fxg5 {[%clk 0:01:50.1]} 27... hxg5 {[%clk 0:00:38.8]} 28. d6
{[%clk 0:01:50.4]} 28... Re6 {[%clk 0:00:38.9]} 29. Nf5 {[%clk 0:01:48.7]} 29...
Qh8 {[%clk 0:00:33.5]} 30. Qxg5+ {[%clk 0:01:47.5]} 30... Kf8 {[%clk 0:00:34]}
31. Ba2 {[%clk 0:01:43.5]} 31... Ne4 {[%clk 0:00:24.6]} 32. Qe3 {[%clk
0:01:34.8]} 32... Bc6 {[%clk 0:00:18.2]} 33. d7 {[%clk 0:01:30.7]} 33... Bxd7
{[%clk 0:00:10.3]} 34. Qxe4 {[%clk 0:01:28.6]} 34... Bc6 {[%clk 0:00:10.9]} 35.
Qe3 {[%clk 0:01:28.3]} 35... Rf6 {[%clk 0:00:11.2]} 36. Qxc5+ {[%clk 0:01:27.5]}
1-0

[Event "*** Titled Tuesday Blitz"]
[Site "Chess.com"]
[Date "2021.04.20"]
[Round "6"]
[White "shineatchess"]
[Black "MrChampion_Coach"]
[Result "0-1"]
[WhiteElo "2219"]
[BlackElo "2413"]
[TimeControl "180+1"]
[EndTime "11:04:11 PDT"]
[Termination "MrChampion_Coach won by resignation"]

1. e4 {[%clk 0:03:00.9]} 1... c5 {[%clk 0:02:58.3]} 2. c3 {[%clk 0:02:59.9]}
2... Nf6 {[%clk 0:02:57]} 3. e5 {[%clk 0:03:00.2]} 3... Nd5 {[%clk 0:02:56.9]}
4. Nf3 {[%clk 0:02:55]} 4... d6 {[%clk 0:02:56.2]} 5. exd6 {[%clk 0:02:52.4]}
5... Qxd6 {[%clk 0:02:55.1]} 6. d4 {[%clk 0:02:47.8]} 6... cxd4 {[%clk
0:02:47.8]} 7. c4 {[%clk 0:02:38.5]} 7... Nb4 {[%clk 0:02:32.6]} 8. a3 {[%clk
0:02:37.8]} 8... N4c6 {[%clk 0:02:32.3]} 9. b4 {[%clk 0:02:32.9]} 9... Bf5
{[%clk 0:02:27.4]} 10. b5 {[%clk 0:02:25.6]} 10... Qe6+ {[%clk 0:02:26.9]} 11.
Be2 {[%clk 0:02:17.8]} 11... d3 {[%clk 0:02:26.3]} 12. bxc6 {[%clk 0:02:16.4]}
12... dxe2 {[%clk 0:02:13.4]} 13. Qd5 {[%clk 0:02:05.2]} 13... Nxc6 {[%clk
0:02:10.3]} 14. Nc3 {[%clk 0:01:48.8]} 14... Rd8 {[%clk 0:02:02.9]} 15. Qxe6
{[%clk 0:01:37.1]} 15... Bxe6 {[%clk 0:02:03.8]} 16. c5 {[%clk 0:01:24.1]} 16...
Bc4 {[%clk 0:01:49.7]} 17. Nxe2 {[%clk 0:01:23.2]} 17... e5 {[%clk 0:01:31.8]}
18. Be3 {[%clk 0:01:22.8]} 18... Be7 {[%clk 0:01:25.5]} 19. Nd2 {[%clk
0:01:17.2]} 19... Ba6 {[%clk 0:01:21.8]} 20. Ne4 {[%clk 0:01:12.4]} 20... f5
{[%clk 0:01:13.5]} 21. N4c3 {[%clk 0:01:05.1]} 21... f4 {[%clk 0:01:04.9]} 22.
Bd2 {[%clk 0:01:04.2]} 22... Bxc5 {[%clk 0:01:04.3]} 23. Nc1 {[%clk 0:00:53.9]}
23... Bxf2+ {[%clk 0:00:59.3]} 24. Kd1 {[%clk 0:00:50.6]} 24... Be3 {[%clk
0:00:50.5]} 25. Nb3 {[%clk 0:00:48.5]} 25... Bc4 {[%clk 0:00:50.9]} 26. Kc2
{[%clk 0:00:37.1]} 26... Bxb3+ {[%clk 0:00:50.1]} 0-1

[Event "*** Titled Tuesday Blitz"]
[Site "Chess.com"]
[Date "2021.04.20"]
[Round "6"]
[White "beto-betun"]
[Black "ri4mi"]
[Result "0-1"]
[WhiteElo "2210"]
[BlackElo "2346"]
[TimeControl "180+1"]
[EndTime "11:04:18 PDT"]
[Termination "ri4mi won on time"]

1. d4 {[%clk 0:03:00.9]} 1... a6 {[%clk 0:03:00.9]} 2. Nf3 {[%clk 0:03:00.6]}
2... b5 {[%clk 0:03:00.1]} 3. g3 {[%clk 0:03:00.5]} 3... Bb7 {[%clk 0:03:00.4]}
4. Bg2 {[%clk 0:03:00.9]} 4... e6 {[%clk 0:03:01]} 5. O-O {[%clk 0:03:01.2]}
5... Nf6 {[%clk 0:03:01.5]} 6. b3 {[%clk 0:02:57.2]} 6... d6 {[%clk 0:02:58]} 7.
Bb2 {[%clk 0:02:56.8]} 7... Nbd7 {[%clk 0:02:57.9]} 8. c4 {[%clk 0:02:56]} 8...
Be7 {[%clk 0:02:57.3]} 9. Nbd2 {[%clk 0:02:55.6]} 9... O-O {[%clk 0:02:57.2]}
10. Qc2 {[%clk 0:02:53.5]} 10... Re8 {[%clk 0:02:57.1]} 11. e4 {[%clk
0:02:52.5]} 11... c5 {[%clk 0:02:57.1]} 12. d5 {[%clk 0:02:42.3]} 12... e5
{[%clk 0:02:53.4]} 13. Nh4 {[%clk 0:02:33.1]} 13... g6 {[%clk 0:02:53.4]} 14. f4
{[%clk 0:02:16.5]} 14... Ng4 {[%clk 0:02:53.6]} 15. Rae1 {[%clk 0:00:40.4]}
15... Bxh4 {[%clk 0:02:52.3]} 16. gxh4 {[%clk 0:00:41.3]} 16... Qxh4 {[%clk
0:02:52.8]} 17. Nf3 {[%clk 0:00:39.5]} 17... Qh5 {[%clk 0:02:51.2]} 18. h3
{[%clk 0:00:37.4]} 18... Nh6 {[%clk 0:02:42.4]} 19. fxe5 {[%clk 0:00:36.1]}
19... dxe5 {[%clk 0:02:39.2]} 20. Bc1 {[%clk 0:00:36.6]} 20... f6 {[%clk
0:02:18.4]} 21. Nh2 {[%clk 0:00:36.1]} 21... Kg7 {[%clk 0:02:12]} 22. Be3 {[%clk
0:00:33.6]} 22... b4 {[%clk 0:02:09.8]} 23. Qf2 {[%clk 0:00:21.8]} 23... Rac8
{[%clk 0:02:01.2]} 24. Ng4 {[%clk 0:00:11.9]} 24... Nxg4 {[%clk 0:01:59.4]} 25.
hxg4 {[%clk 0:00:12.8]} 25... Qxg4 {[%clk 0:01:58.8]} 26. Kh2 {[%clk 0:00:12.1]}
26... Rf8 {[%clk 0:01:51.3]} 27. Bh3 {[%clk 0:00:11.9]} 27... Qh5 {[%clk
0:01:51.4]} 28. Qg3 {[%clk 0:00:05]} 28... Rf7 {[%clk 0:01:40.8]} 29. Qg4 {[%clk
0:00:04.5]} 29... Qxg4 {[%clk 0:01:37.5]} 30. Bxg4 {[%clk 0:00:05.4]} 30... Rc7
{[%clk 0:01:34.9]} 31. Be6 {[%clk 0:00:03.7]} 31... Rf8 {[%clk 0:01:29.8]} 32.
Rf2 {[%clk 0:00:03.3]} 32... Bc8 {[%clk 0:01:27.8]} 0-1

[Event "*** Titled Tuesday Blitz"]
[Site "Chess.com"]
[Date "2021.04.20"]
[Round "6"]
[White "TigrVShlyape"]
[Black "Sashadav97"]
[Result "1-0"]
[WhiteElo "2824"]
[BlackElo "2620"]
[TimeControl "180+1"]
[EndTime "11:04:20 PDT"]
[Termination "TigrVShlyape won by resignation"]

1. e4 {[%clk 0:03:00.9]} 1... c5 {[%clk 0:02:58.3]} 2. Nf3 {[%clk 0:03:00.4]}
2... e6 {[%clk 0:02:58.4]} 3. d4 {[%clk 0:02:55]} 3... cxd4 {[%clk 0:02:59.3]}
4. Nxd4 {[%clk 0:02:54.7]} 4... Nf6 {[%clk 0:02:58.4]} 5. Nc3 {[%clk 0:02:54.2]}
5... Nc6 {[%clk 0:02:59]} 6. Ndb5 {[%clk 0:02:53.5]} 6... Bc5 {[%clk 0:02:58.9]}
7. Nd6+ {[%clk 0:02:51.2]} 7... Ke7 {[%clk 0:02:58.1]} 8. Bf4 {[%clk 0:02:34.5]}
8... e5 {[%clk 0:02:56.4]} 9. Nf5+ {[%clk 0:02:30]} 9... Kf8 {[%clk 0:02:55.9]}
10. Bg5 {[%clk 0:02:18.4]} 10... d6 {[%clk 0:02:53.6]} 11. Ne3 {[%clk
0:01:56.5]} 11... h6 {[%clk 0:02:47.9]} 12. Bxf6 {[%clk 0:01:55.2]} 12... Qxf6
{[%clk 0:02:48.8]} 13. Ncd5 {[%clk 0:01:53.8]} 13... Qd8 {[%clk 0:02:46.5]} 14.
c3 {[%clk 0:01:51.3]} 14... a6 {[%clk 0:02:45.7]} 15. a4 {[%clk 0:01:49.3]}
15... g6 {[%clk 0:02:37.8]} 16. g3 {[%clk 0:01:45]} 16... Kg7 {[%clk 0:02:37.3]}
17. Bg2 {[%clk 0:01:44.2]} 17... Be6 {[%clk 0:02:37]} 18. O-O {[%clk 0:01:44.2]}
18... Rc8 {[%clk 0:02:33.3]} 19. Kh1 {[%clk 0:01:41.3]} 19... Ne7 {[%clk
0:02:12.6]} 20. Nxe7 {[%clk 0:01:36]} 20... Qxe7 {[%clk 0:02:12.3]} 21. Nd5
{[%clk 0:01:36.5]} 21... Qd8 {[%clk 0:01:37.5]} 22. f4 {[%clk 0:01:35.5]} 22...
exf4 {[%clk 0:01:29.2]} 23. gxf4 {[%clk 0:01:33.9]} 23... Re8 {[%clk 0:01:28.2]}
24. f5 {[%clk 0:01:30.3]} 24... Bxd5 {[%clk 0:01:28.4]} 25. Qxd5 {[%clk
0:01:26.3]} 25... Rc7 {[%clk 0:01:09.6]} 26. Rad1 {[%clk 0:01:23.2]} 26... Qg5
{[%clk 0:00:55.8]} 27. b4 {[%clk 0:01:19.2]} 27... Re5 {[%clk 0:00:42.7]} 28.
Qd3 {[%clk 0:01:14.9]} 28... Bb6 {[%clk 0:00:23.9]} 29. a5 {[%clk 0:01:11.8]}
29... Ba7 {[%clk 0:00:20.7]} 30. Qxd6 {[%clk 0:01:10.9]} 1-0

[Event "*** Titled Tuesday Blitz"]
[Site "Chess.com"]
[Date "2021.04.20"]
[Round "6"]
[White "FMJoseHerrera"]
[Black "dosto07"]
[Result "1-0"]
[WhiteElo "2622"]
[BlackElo "2331"]
[TimeControl "180+1"]
[EndTime "11:04:22 PDT"]
[Termination "FMJoseHerrera won by resignation"]

1. Nf3 {[%clk 0:03:00.9]} 1... d5 {[%clk 0:02:59.6]} 2. g3 {[%clk 0:02:59.1]}
2... Nf6 {[%clk 0:02:58.9]} 3. Bg2 {[%clk 0:02:58.9]} 3... c6 {[%clk 0:02:59.5]}
4. d3 {[%clk 0:02:58.6]} 4... Bg4 {[%clk 0:02:59.6]} 5. c3 {[%clk 0:02:58.9]}
5... Nbd7 {[%clk 0:02:59.7]} 6. O-O {[%clk 0:02:59]} 6... e6 {[%clk 0:02:59.9]}
7. Qb3 {[%clk 0:02:59.4]} 7... Qb6 {[%clk 0:02:58.7]} 8. Be3 {[%clk 0:02:58.1]}
8... Bc5 {[%clk 0:02:51.6]} 9. Bxc5 {[%clk 0:02:57.3]} 9... Nxc5 {[%clk
0:02:50]} 10. Qa3 {[%clk 0:02:57.7]} 10... O-O {[%clk 0:02:46.4]} 11. Nbd2
{[%clk 0:02:57.3]} 11... a5 {[%clk 0:02:44.5]} 12. Rfb1 {[%clk 0:02:56.4]} 12...
a4 {[%clk 0:02:42.1]} 13. h3 {[%clk 0:02:49.1]} 13... Bh5 {[%clk 0:02:40.1]} 14.
c4 {[%clk 0:02:38.1]} 14... Rfe8 {[%clk 0:02:36.3]} 15. Qc3 {[%clk 0:02:37.2]}
15... Ncd7 {[%clk 0:02:23.9]} 16. b4 {[%clk 0:02:35.6]} 16... axb3 {[%clk
0:02:22.9]} 17. axb3 {[%clk 0:02:34.6]} 17... c5 {[%clk 0:02:14.9]} 18. Rxa8
{[%clk 0:02:30.7]} 18... Rxa8 {[%clk 0:02:14]} 19. b4 {[%clk 0:02:28.3]} 19...
d4 {[%clk 0:01:52.9]} 20. Qc1 {[%clk 0:02:20]} 20... cxb4 {[%clk 0:01:48.5]} 21.
Qb2 {[%clk 0:02:07.6]} 21... e5 {[%clk 0:01:33.8]} 22. Qxb4 {[%clk 0:02:05.3]}
22... Qxb4 {[%clk 0:01:31]} 23. Rxb4 {[%clk 0:02:06.2]} 23... Ra7 {[%clk
0:01:25.6]} 24. g4 {[%clk 0:02:06]} 24... Bg6 {[%clk 0:01:24.7]} 25. Kh2 {[%clk
0:02:06.3]} 25... h6 {[%clk 0:01:14.1]} 26. Kg3 {[%clk 0:02:05.6]} 26... Kf8
{[%clk 0:01:11.2]} 27. Rb2 {[%clk 0:02:05.5]} 27... Ke7 {[%clk 0:01:10.5]} 28.
c5 {[%clk 0:01:59.1]} 28... Ne8 {[%clk 0:01:02.6]} 29. Nc4 {[%clk 0:01:58.8]}
29... f6 {[%clk 0:01:00]} 30. Nh4 {[%clk 0:01:58.7]} 30... Bf7 {[%clk
0:00:56.8]} 31. Nf5+ {[%clk 0:01:58.1]} 31... Kd8 {[%clk 0:00:49.3]} 32. Ncd6
{[%clk 0:01:57.4]} 32... Nxd6 {[%clk 0:00:40.2]} 33. Nxd6 {[%clk 0:01:55.8]}
33... Be6 {[%clk 0:00:34.5]} 34. Nxb7+ {[%clk 0:01:53.5]} 34... Kc7 {[%clk
0:00:34]} 35. Nd6 {[%clk 0:01:53]} 35... Nxc5 {[%clk 0:00:19.6]} 36. Nb5+ {[%clk
0:01:52]} 36... Kb6 {[%clk 0:00:20.5]} 37. Nxa7+ {[%clk 0:01:52.2]} 37... Kxa7
{[%clk 0:00:21.3]} 38. Rb5 {[%clk 0:01:52.1]} 38... Nd7 {[%clk 0:00:19.7]} 39.
Bc6 {[%clk 0:01:49.7]} 39... Ka6 {[%clk 0:00:15.1]} 40. Rb7 {[%clk 0:01:46.6]}
40... Nc5 {[%clk 0:00:14]} 41. Rxg7 {[%clk 0:01:46.3]} 41... f5 {[%clk
0:00:12.7]} 42. Rg6 {[%clk 0:01:45.2]} 42... f4+ {[%clk 0:00:12.1]} 43. Kg2
{[%clk 0:01:42.1]} 43... Bc8 {[%clk 0:00:11.9]} 44. Bd7+ {[%clk 0:01:40.9]}
44... Kb7 {[%clk 0:00:11.8]} 45. Bxc8+ {[%clk 0:01:41.2]} 45... Kxc8 {[%clk
0:00:12.7]} 46. Rc6+ {[%clk 0:01:41.3]} 1-0

[Event "*** Titled Tuesday Blitz"]
[Site "Chess.com"]
[Date "2021.04.20"]
[Round "6"]
[White "UKR_Master"]
[Black "AnnaChessLook"]
[Result "1-0"]
[WhiteElo "2477"]
[BlackElo "2247"]
[TimeControl "180+1"]
[EndTime "11:04:22 PDT"]
[Termination "UKR_Master won by resignation"]

1. e4 {[%clk 0:03:00.9]} 1... c5 {[%clk 0:02:58.3]} 2. Nf3 {[%clk 0:03:01.4]}
2... Nc6 {[%clk 0:02:58.4]} 3. c3 {[%clk 0:03:02]} 3... e6 {[%clk 0:02:58]} 4.
d4 {[%clk 0:03:01.5]} 4... d5 {[%clk 0:02:56.8]} 5. e5 {[%clk 0:02:59.8]} 5...
Nh6 {[%clk 0:02:53.5]} 6. Bd3 {[%clk 0:02:56.1]} 6... cxd4 {[%clk 0:02:52.2]} 7.
cxd4 {[%clk 0:02:57]} 7... Nf5 {[%clk 0:02:53]} 8. Bxf5 {[%clk 0:02:57.2]} 8...
exf5 {[%clk 0:02:52.9]} 9. Nc3 {[%clk 0:02:58.1]} 9... Be6 {[%clk 0:02:52.8]}
10. O-O {[%clk 0:02:58.6]} 10... Be7 {[%clk 0:02:52.9]} 11. a3 {[%clk
0:02:55.9]} 11... Qb6 {[%clk 0:02:52.4]} 12. b4 {[%clk 0:02:54.6]} 12... Rg8
{[%clk 0:02:33.1]} 13. b5 {[%clk 0:02:53.1]} 13... Na5 {[%clk 0:02:29.9]} 14. a4
{[%clk 0:02:53.4]} 14... g5 {[%clk 0:02:20.9]} 15. Ba3 {[%clk 0:02:48.1]} 15...
g4 {[%clk 0:02:10.6]} 16. Ne1 {[%clk 0:02:34.8]} 16... Bg5 {[%clk 0:01:58.2]}
17. Bc5 {[%clk 0:02:32.8]} 17... Qd8 {[%clk 0:01:53.3]} 18. Nd3 {[%clk
0:02:31.5]} 18... b6 {[%clk 0:01:49]} 19. Ba3 {[%clk 0:02:31.7]} 19... Rc8
{[%clk 0:01:47.5]} 20. Ne2 {[%clk 0:02:23.3]} 20... Nc4 {[%clk 0:01:28.2]} 21.
Bc1 {[%clk 0:02:21.9]} 21... Be7 {[%clk 0:01:23.6]} 22. Nef4 {[%clk 0:02:20.2]}
22... Qc7 {[%clk 0:00:34.5]} 23. Nh5 {[%clk 0:02:19.2]} 23... Kd7 {[%clk
0:00:31]} 24. Bf4 {[%clk 0:02:17.7]} 24... Rg6 {[%clk 0:00:26.5]} 25. Nf6+
{[%clk 0:02:16.8]} 25... Bxf6 {[%clk 0:00:25.7]} 26. exf6 {[%clk 0:02:17.7]}
26... Qd8 {[%clk 0:00:26.4]} 27. Rc1 {[%clk 0:02:16.9]} 27... Qxf6 {[%clk
0:00:22.8]} 28. Ne5+ {[%clk 0:02:14.5]} 28... Ke8 {[%clk 0:00:19.9]} 29. Qe2
{[%clk 0:02:11.5]} 29... Nxe5 {[%clk 0:00:15.9]} 30. Bxe5 {[%clk 0:02:11]} 30...
Qd8 {[%clk 0:00:15.6]} 31. Qd2 {[%clk 0:02:10.1]} 31... Kf8 {[%clk 0:00:15.1]}
32. Rxc8 {[%clk 0:02:09.5]} 32... Qxc8 {[%clk 0:00:15.2]} 33. Rc1 {[%clk
0:02:10.4]} 33... Qd8 {[%clk 0:00:15.6]} 34. Rc3 {[%clk 0:02:09.8]} 34... Kg8
{[%clk 0:00:14.5]} 35. Rc6 {[%clk 0:02:05.9]} 35... h6 {[%clk 0:00:14.5]} 36.
Qc3 {[%clk 0:02:02.8]} 36... Kh7 {[%clk 0:00:14.8]} 37. Rc7 {[%clk 0:02:02.7]}
37... Qg5 {[%clk 0:00:13.9]} 38. g3 {[%clk 0:01:58.9]} 38... h5 {[%clk
0:00:12.9]} 39. Rxa7 {[%clk 0:01:53.5]} 39... h4 {[%clk 0:00:12.9]} 40. Ra8
{[%clk 0:01:54.2]} 40... Rg8 {[%clk 0:00:12]} 41. Rxg8 {[%clk 0:01:52.2]} 41...
Kxg8 {[%clk 0:00:11.9]} 42. a5 {[%clk 0:01:51.4]} 42... bxa5 {[%clk 0:00:11.6]}
43. b6 {[%clk 0:01:51.5]} 43... h3 {[%clk 0:00:10.4]} 44. b7 {[%clk 0:01:51.1]}
44... Qd8 {[%clk 0:00:09.8]} 45. b8=Q {[%clk 0:01:50.6]} 1-0

[Event "*** Titled Tuesday Blitz"]
[Site "Chess.com"]
[Date "2021.04.20"]
[Round "6"]
[White "FMalexhdez"]
[Black "martinique24"]
[Result "0-1"]
[WhiteElo "2233"]
[BlackElo "2472"]
[TimeControl "180+1"]
[EndTime "11:04:24 PDT"]
[Termination "martinique24 won by resignation"]

1. e4 {[%clk 0:03:00.9]} 1... c6 {[%clk 0:02:59.5]} 2. d4 {[%clk 0:02:59.8]}
2... d5 {[%clk 0:02:59]} 3. exd5 {[%clk 0:03:00.4]} 3... cxd5 {[%clk 0:02:58.7]}
4. Bd3 {[%clk 0:03:01]} 4... Nf6 {[%clk 0:02:57.5]} 5. c3 {[%clk 0:03:01]} 5...
Nc6 {[%clk 0:02:57.6]} 6. Bg5 {[%clk 0:02:59.5]} 6... Ne4 {[%clk 0:02:56]} 7.
Bxe4 {[%clk 0:02:44.4]} 7... dxe4 {[%clk 0:02:55.4]} 8. Nd2 {[%clk 0:02:41.3]}
8... Bf5 {[%clk 0:02:47.9]} 9. Ne2 {[%clk 0:02:35.2]} 9... h6 {[%clk 0:02:46.9]}
10. Be3 {[%clk 0:02:32.3]} 10... Bh7 {[%clk 0:02:45.6]} 11. Ng3 {[%clk 0:02:28]}
11... f5 {[%clk 0:02:40.5]} 12. O-O {[%clk 0:02:16.3]} 12... e6 {[%clk
0:02:40.8]} 13. f3 {[%clk 0:02:13]} 13... exf3 {[%clk 0:02:37.1]} 14. Nxf3
{[%clk 0:01:57.7]} 14... Bd6 {[%clk 0:02:35]} 15. Qb3 {[%clk 0:01:52.3]} 15...
f4 {[%clk 0:02:25.6]} 16. Qxb7 {[%clk 0:01:13.4]} 16... Ne7 {[%clk 0:02:15.8]}
17. Nh5 {[%clk 0:00:59.6]} 17... O-O {[%clk 0:02:06.9]} 18. Bd2 {[%clk
0:00:51.7]} 18... Bg6 {[%clk 0:01:52.8]} 19. g4 {[%clk 0:00:45.2]} 19... fxg3
{[%clk 0:01:51.6]} 20. Nxg3 {[%clk 0:00:44.9]} 20... Nd5 {[%clk 0:01:49.1]} 21.
Ne5 {[%clk 0:00:37.2]} 21... Bxe5 {[%clk 0:01:39.9]} 22. dxe5 {[%clk 0:00:27.2]}
22... Rb8 {[%clk 0:01:37.7]} 23. Qxa7 {[%clk 0:00:20.8]} 23... Rxb2 {[%clk
0:01:37.8]} 24. Rxf8+ {[%clk 0:00:16.4]} 24... Qxf8 {[%clk 0:01:37.5]} 25. Rf1
{[%clk 0:00:16.4]} 25... Qc8 {[%clk 0:01:32.6]} 26. Bc1 {[%clk 0:00:15.8]} 26...
Rc2 {[%clk 0:01:21.8]} 27. Qd4 {[%clk 0:00:10.1]} 27... Rxc3 {[%clk 0:01:12.2]}
28. Qg4 {[%clk 0:00:09.3]} 28... Bd3 {[%clk 0:01:07]} 29. Re1 {[%clk 0:00:05.7]}
29... Rxc1 {[%clk 0:01:06.7]} 0-1